bitfinex-derivatives/quotes_SOLF0:USTF0_20250731
["timestamp","ask_amount","ask_price","bid_price","bid_amount"]
[1753999783783,3.08,173.52,173.44,5.7661]
[1753999783978,3.08,173.5,173.43,3.15]
[1753999784180,3.08,173.48,173.43,3.15]
[1753999784482,3.08,173.48,173.4,112.08]
[1753999784483,5.37031835,173.47,173.38,8.52031835]
[1753999784682,3.08,173.46,173.39,3.15]
[1753999785385,3.08,173.47,173.44,3.15]
[1753999785578,5.37031835,173.53,173.44,3.15]
[1753999785773,4.23008716,173.52,173.42,5.37031835]
[1753999785973,3.08,173.5,173.43,3.15]
[1753999786385,3.08,173.46,173.44,3.15]
[1753999786990,5.7655,173.47,173.44,3.15]
[1753999787285,3.08,173.45,173.43,5.7665]
[1753999787484,3.08,173.44,173.42,14.28731835]
[1753999787680,5.37031835,173.51,173.42,3.15]
[1753999787880,3.08,173.42,173.4,8.52031835]
[1753999788088,3.08,173.46,173.38,3.15]
[1753999788294,3.08,173.46,173.38,5.37031835]
[1753999788474,3.08,173.42,173.4,3.15]
[1753999789082,5.37031835,173.45,173.37,3.15]
[1753999789386,3.08,173.44,173.36,111.94]
[1753999789581,3.08,173.37,173.35,8.9192]
[1753999790585,3.08,173.37,173.35,3.15]
[1753999790980,3.08,173.37,173.34,396.6596]
[1753999791179,3.08,173.36,173.34,396.6596]
[1753999791583,3.08,173.36,173.35,5.7694]
[1753999791788,3.08,173.4,173.32,120.44031835]
[1753999792480,3.08,173.4,173.32,3.15]
[1753999792986,3.08,173.4,173.32,8.9201]
[1753999793587,3.08,173.35,173.33,5.7699]
[1753999793784,3.08,173.35,173.33,8.9199]
[1753999794789,5.7689,173.37,173.33,8.9199]
[1753999794990,3.08,173.35,173.33,8.9199]
[1753999795382,3.08,173.33,173.24,431.6]
[1753999795588,3.08,173.33,173.28,3.15]
[1753999796891,3.08,173.34,173.32,3.15]
[1753999797189,5.7691,173.36,173.32,3.15]
[1753999797388,3.08,173.33,173.32,3.15]
[1753999797789,5.7681,173.39,173.32,3.15]
[1753999797982,3.08,173.41,173.33,5.37031835]
[1753999798183,3.08,173.39,173.34,3.15]
[1753999798385,3.22,173.37,173.35,9.0092]
[1753999798688,3.22,173.37,173.35,3.24]
[1753999799088,3.22,173.41,173.33,14.38031835]
[1753999799289,3.22,173.41,173.33,9.01]
[1753999799593,3.22,173.35,173.31,3.24]
[1753999799790,3.22,173.34,173.31,115.12]
[1753999799991,3.22,173.34,173.32,3.24]
[1753999800193,3.22,173.34,173.31,111.88]
[1753999800493,3.22,173.39,173.31,111.88]
[1753999800790,3.22,173.34,173.3,3.24]
[1753999801090,3.22,173.33,173.3,3.24]
[1753999801294,3.22,173.32,173.31,5.7706]
[1753999801992,5.37031835,173.4,173.32,3.24]
[1753999802191,3.22,173.37,173.29,3.24]
[1753999802392,5.7706,173.32,173.28,111.88]
[1753999802586,3.22,173.31,173.29,3.24]
[1753999802791,3.22,173.31,173.29,9.0113]
[1753999802986,5.37031835,173.34,173.24,392.97031835]
[1753999803191,3.22,173.33,173.25,111.86]
[1753999803397,3.22,173.3,173.28,9.0114]
[1753999803595,3.22,173.35,173.29,5.37031835]
[1753999803798,3.22,173.35,173.3,3.24]
[1753999803997,3.22,173.33,173.31,3.24]
[1753999804196,3.22,173.4,173.3,3.24]
[1753999804402,3.22,173.38,173.31,5.7705]
[1753999804598,3.22,173.38,173.33,5.37031835]
[1753999804898,4.79203735,173.43,173.33,5.37031835]
[1753999804899,3.22,173.37,173.35,5.7694]
[1753999805095,3.22,173.39,173.36,3.24]
[1753999805299,3.22,173.37,173.35,3.24]
[1753999805495,3.22,173.36,173.35,3.24]
[1753999806997,5.37031835,173.37,173.3,111.84]
[1753999807195,3.22,173.36,173.3,111.84]
[1753999807402,5.37031835,173.37,173.3,111.84]
[1753999807596,3.22,173.31,173.3,111.84]
[1753999808301,3.22,173.29,173.25,117.19031835]
[1753999808597,3.22,173.29,173.26,5.7723]
[1753999808800,3.22,173.31,173.24,390.84]
[1753999808994,3.22,173.31,173.24,396.613]
[1753999809190,3.22,173.31,173.24,390.84]
[1753999811091,3.22,173.31,173.25,5.7725]
[1753999811294,3.22,173.31,173.24,387.6]
[1753999811495,3.22,173.31,173.25,3.24]
[1753999811696,3.22,173.3,173.27,3.24]
[1753999811895,3.22,173.32,173.29,3.24]
[1753999812098,3.22,173.32,173.26,111.78]
[1753999812099,3.22,173.34,173.28,3.24]
[1753999812795,3.22,173.34,173.27,5.37031835]
[1753999813003,3.22,173.41,173.34,3.24]
[1753999813202,3.22,173.39,173.31,5.37031835]
[1753999813392,3.22,173.39,173.32,111.78]
[1753999813795,3.22,173.39,173.33,5.37031835]
[1753999813996,3.22,173.39,173.36,3.24]
[1753999814296,3.22,173.37,173.35,5.37031835]
[1753999814696,3.22,173.37,173.35,3.24]
[1753999815404,3.22,173.43,173.33,5.37031835]
[1753999815698,3.22,173.41,173.33,5.37031835]
[1753999815902,3.22,173.36,173.33,8.61031835]
[1753999816303,3.22,173.36,173.34,3.24]
[1753999816602,5.7685,173.38,173.33,11.14031835]
[1753999816803,8.9878,173.4,173.38,3.24]
[1753999816998,3.22,173.4,173.38,3.24]
[1753999817207,3.22,173.39,173.37,5.37031835]
[1753999817400,10.1623557,173.47,173.37,5.37031835]
[1753999817712,3.22,173.4,173.33,3.24]
[1753999817904,3.22,173.4,173.33,8.61031835]
[1753999818103,5.37031835,173.41,173.32,120.35031835]
[1753999818308,3.22,173.39,173.32,117.11031835]
[1753999818497,3.22,173.39,173.3,8.61031835]
[1753999818703,4.23575323,173.38,173.29,111.74]
[1753999819006,3.22,173.37,173.29,3.24]
[1753999819608,3.22,173.34,173.31,3.24]
[1753999819802,3.22,173.34,173.32,3.24]
[1753999820207,3.22,173.4,173.31,3.24]
[1753999820406,3.22,173.4,173.32,8.61031835]
[1753999820605,3.22,173.4,173.34,5.37031835]
[1753999820801,4.79203735,173.44,173.34,5.37031835]
[1753999820802,3.22,173.44,173.36,5.37031835]
[1753999821007,3.22,173.42,173.38,8.61031835]
[1753999821201,3.22,173.39,173.36,8.61031835]
[1753999821508,3.22,173.39,173.37,3.24]
[1753999821909,5.37031835,173.44,173.34,8.61031835]
[1753999822114,5.37031835,173.4,173.33,111.72]
[1753999822408,3.22,173.32,173.29,3.24]
[1753999822910,5.7691,173.36,173.32,5.7702]
[1753999823108,3.22,173.36,173.33,3.24]
[1753999823306,3.22,173.41,173.3,5.37031835]
[1753999823507,5.7688,173.37,173.31,3.24]
[1753999823812,3.22,173.39,173.31,3.24]
[1753999824208,8.9892,173.36,173.33,3.24]
[1753999824607,3.22,173.36,173.33,3.24]
[1753999824812,5.37031835,173.38,173.3,3.24]
[1753999825109,3.22,173.37,173.3,8.61031835]
[1753999825814,3.22,173.37,173.31,3.24]
[1753999826015,3.22,173.37,173.33,3.24]
[1753999826511,3.22,173.37,173.34,3.24]
[1753999826714,3.22,173.41,173.32,8.61031835]
[1753999826901,3.22,173.39,173.32,8.61031835]
[1753999827106,3.22,173.39,173.32,14.38061835]
[1753999827510,3.22,173.39,173.32,3.24]
[1753999828413,5.7696,173.35,173.32,9.0103]
[1753999828610,3.2,173.39,173.31,111.68]
[1753999828806,4.79203735,173.42,173.31,111.68]
[1753999828807,3.2,173.37,173.31,111.68]
[1753999829005,3.2,173.37,173.3,3.19]
[1753999829507,3.2,173.34,173.31,3.19]
[1753999829815,3.2,173.37,173.29,3.19]
[1753999830506,5.37031835,173.38,173.23,3.19]
[1753999830507,3.2,173.28,173.23,3.19]
[1753999831106,5.37031835,173.29,173.21,111.64]
[1753999831107,8.9733,173.24,173.21,114.83]
[1753999831412,4.79203735,173.33,173.18,3.19]
[1753999831413,3.2,173.26,173.18,3.19]
[1753999831612,8.9736,173.23,173.2,3.19]
[1753999831809,3.2,173.26,173.17,111.64]
[1753999832012,3.2,173.26,173.17,114.83]
[1753999832310,9.6164368,173.25,173.18,5.775]
[1753999832513,3.2,173.24,173.18,3.19]
[1753999832811,3.2,173.24,173.17,114.83]
[1753999833006,3.2,173.24,173.2,3.19]
[1753999833208,3.2,173.28,173.22,3.19]
[1753999833701,5.7721,173.27,173.24,5.773]
[1753999833908,5.7721,173.27,173.25,3.19]
[1753999834207,5.7726,173.26,173.23,3.19]
[1753999834414,8.9726,173.26,173.23,3.19]
[1753999834614,8.9726,173.26,173.24,3.19]
[1753999834808,3.2,173.26,173.24,3.19]
[1753999835411,8.9726,173.26,173.24,3.19]
[1753999835606,3.2,173.26,173.24,3.19]
[1753999836017,3.2,173.32,173.24,3.19]
[1753999836315,3.2,173.31,173.24,3.19]
[1753999836514,3.2,173.29,173.24,3.19]
[1753999836715,8.9722,173.27,173.25,3.19]
[1753999837017,3.2,173.27,173.25,3.19]
[1753999837310,8.972,173.27,173.25,3.19]
[1753999837507,3.2,173.29,173.27,3.19]
[1753999837909,8.9714,173.29,173.27,3.19]
[1753999838608,3.2,173.29,173.27,3.19]
[1753999839715,3.2,173.29,173.28,3.19]
[1753999839912,3.2,173.28,173.26,3.19]
[1753999840111,5.37031835,173.29,173.2,114.79]
[1753999840306,5.7722,173.27,173.22,5.7734]
[1753999840614,3.2,173.28,173.22,8.9634]
[1753999840812,3.2,173.28,173.23,5.37031835]
[1753999841018,3.2,173.28,173.25,3.19]
[1753999841219,3.2,173.28,173.26,3.19]
[1753999841417,8.9719,173.28,173.26,3.19]
[1753999841718,3.2,173.3,173.23,3.19]
[1753999841916,3.2,173.27,173.24,3.19]
[1753999842218,3.2,173.3,173.24,3.19]
[1753999843319,5.37031835,173.33,173.26,3.19]
[1753999843613,3.2,173.31,173.23,8.56031835]
[1753999843820,4.27662563,173.3,173.23,5.37031835]
[1753999844016,7.47617378,173.29,173.22,114.77]
[1753999844213,3.2,173.29,173.22,3.19]
[1753999844714,3.2,173.29,173.22,8.9636]
[1753999844715,3.2,173.28,173.22,8.9636]
[1753999845417,3.2,173.28,173.19,5.37031835]
[1753999845618,3.2,173.28,173.2,114.77]
[1753999845821,5.7729,173.25,173.21,5.7738]
[1753999846117,3.2,173.28,173.21,3.19]
[1753999847116,5.7728,173.25,173.22,3.19]
[1753999847313,5.7728,173.25,173.24,3.19]
[1753999847819,4.79203735,173.33,173.24,3.19]
[1753999847820,3.2,173.3,173.24,5.37031835]
[1753999848018,3.2,173.3,173.25,3.19]
[1753999848219,3.2,173.3,173.27,3.19]
[1753999848415,3.2,173.3,173.28,3.19]
[1753999848819,5.7714,173.29,173.28,3.19]
[1753999849016,3.2,173.32,173.29,3.19]
[1753999849317,3.2,173.32,173.3,3.19]
[1753999849920,8.9706,173.32,173.3,3.19]
[1753999850121,3.2,173.38,173.31,3.19]
[1753999850317,3.2,173.35,173.3,5.37031835]
[1753999850530,3.2,173.35,173.33,3.19]
[1753999851618,3.2,173.34,173.33,3.19]
[1753999851819,3.2,173.36,173.33,3.19]
[1753999852019,10.1623557,173.41,173.33,3.19]
[1753999852020,3.2,173.35,173.33,3.19]
[1753999852430,8.9696,173.35,173.33,3.19]
[1753999852632,4.79203735,173.42,173.33,3.19]
[1753999852633,3.2,173.4,173.33,3.19]
[1753999852929,3.2,173.39,173.37,3.19]
[1753999853331,398.1223557,173.46,173.36,5.37031835]
[1753999853526,3.2,173.44,173.38,3.19]
[1753999853820,3.2,173.4,173.38,3.19]
[1753999854022,3.2,173.38,173.36,8.56031835]
[1753999854224,5.7682,173.39,173.37,3.19]
[1753999854419,8.9682,173.39,173.37,3.19]
[1753999854621,3.2,173.39,173.37,3.19]
[1753999854823,5.7678,173.4,173.38,3.19]
[1753999855126,8.9676,173.41,173.39,3.19]
[1753999855627,5.7666,173.44,173.4,5.7676]
[1753999855926,5.7666,173.44,173.42,3.19]
[1753999855927,3.2,173.44,173.42,3.19]
[1753999856625,3.2,173.49,173.42,3.19]
[1753999856822,3.2,173.47,173.41,3.19]
[1753999857222,3.2,173.51,173.42,5.37031835]
[1753999857427,3.2,173.49,173.43,3.19]
[1753999858018,8.9648,173.49,173.43,3.19]
[1753999858228,3.2,173.48,173.46,3.27]
[1753999858430,5.37031835,173.54,173.45,3.27]
[1753999858727,3.16,173.52,173.47,3.27]
[1753999858922,3.16,173.52,173.49,3.27]
[1753999859329,3.16,173.52,173.47,3.27]
[1753999859530,5.37031835,173.6,173.49,8.64031835]
[1753999859725,3.16,173.58,173.49,8.64031835]
[1753999860035,3.16,173.53,173.49,3.27]
[1753999860230,3.16,173.53,173.47,3.27]
[1753999860629,3.16,173.5,173.47,3.27]
[1753999860828,3.16,173.49,173.47,3.27]
[1753999861030,5.7647,173.5,173.45,5.766]
[1753999861229,3.16,173.49,173.45,9.036]
[1753999861430,3.16,173.48,173.45,9.036]
[1753999861632,3.16,173.53,173.45,3.27]
[1753999861837,3.16,173.51,173.44,3.27]
[1753999862335,4.79203735,173.57,173.41,114.65]
[1753999862336,3.16,173.49,173.41,114.65]
[1753999862841,3.16,173.49,173.42,3.27]
[1753999863535,5.37031835,173.5,173.43,3.27]
[1753999863536,3.16,173.46,173.43,3.27]
[1753999863830,11.5231,173.59,173.46,3.27]
[1753999863831,3.16,173.48,173.46,3.27]
[1753999864029,5.7645,173.5,173.46,3.27]
[1753999864235,3.16,173.48,173.45,5.766]
[1753999864436,5.7645,173.5,173.47,3.27]
[1753999864636,17.86351113,173.59,173.47,3.27]
[1753999864637,3.16,173.49,173.47,3.27]
[1753999864933,5.37031835,173.54,173.47,3.27]
[1753999865131,3.16,173.48,173.45,3.27]
[1753999865631,5.37031835,173.54,173.45,3.27]
[1753999865830,8.53031835,173.52,173.45,3.27]
[1753999866038,3.16,173.51,173.45,9.036]
[1753999867037,3.16,173.51,173.45,3.27]
[1753999867737,3.16,173.53,173.47,3.27]
[1753999867939,3.16,173.53,173.42,155.34]
[1753999867940,3.16,173.53,173.44,5.37031835]
[1753999868135,3.16,173.51,173.44,3.27]
[1753999868836,5.7652,173.48,173.44,9.0361]
[1753999869138,5.37031835,173.5,173.44,9.0361]
[1753999869340,3.16,173.45,173.44,9.0361]
[1753999869642,16.89251835,173.6,173.41,114.57]
[1753999869643,3.16,173.44,173.41,114.57]
[1753999869844,3.16,173.44,173.42,3.27]
[1753999870141,5.7658,173.46,173.43,3.27]
[1753999870435,3.16,173.45,173.43,3.27]
[1753999872147,8.9263,173.45,173.43,3.27]
[1753999872445,3.16,173.45,173.43,3.27]
[1753999872640,3.16,173.51,173.42,8.64031835]
[1753999872842,3.16,173.56,173.49,5.37031835]
[1753999873235,5.7635,173.53,173.49,11.13501835]
[1753999873442,3.16,173.52,173.5,3.27]
[1753999873843,3.16,173.52,173.51,3.27]
[1753999874341,3.16,173.52,173.49,5.37031835]
[1753999874644,3.16,173.5,173.49,5.37031835]
[1753999875146,3.16,173.5,173.49,8.64031835]
[1753999875341,3.16,173.5,173.41,3.27]
[1753999875645,5.7646,173.5,173.46,5.7656]
[1753999875843,3.16,173.49,173.45,8.64031835]
[1753999876039,5.37031835,173.55,173.45,8.64031835]
[1753999876342,3.16,173.46,173.41,5.37031835]
[1753999876549,5.37031835,173.51,173.41,5.37031835]
[1753999876550,3.16,173.5,173.41,119.88031835]
[1753999876743,3.16,173.45,173.43,5.7666]
[1753999876939,3.16,173.45,173.43,9.0366]
[1753999877950,3.16,173.45,173.43,5.7666]
[1753999878148,3.16,173.45,173.44,3.27]
[1753999878344,5.37031835,173.51,173.42,3.27]
[1753999878552,3.16,173.5,173.42,3.27]
[1753999878739,3.16,173.5,173.44,5.7663]
[1753999879044,3.16,173.45,173.43,3.27]
[1753999881348,3.16,173.45,173.41,116.61031835]
[1753999881549,3.16,173.44,173.42,3.27]
[1753999881947,3.16,173.44,173.43,3.27]
[1753999882939,3.16,173.48,173.39,8.64031835]
[1753999883143,3.16,173.46,173.39,3.27]
[1753999883345,5.37031835,173.45,173.38,387.7]
[1753999883546,3.16,173.44,173.36,3.27]
[1753999883747,3.16,173.44,173.37,111.18]
[1753999883946,5.37031835,173.45,173.37,111.18]
[1753999883947,5.7679,173.4,173.37,111.18]
[1753999884148,3.16,173.38,173.37,111.18]
[1753999885249,5.37031835,173.45,173.34,5.37031835]
[1753999885250,3.16,173.42,173.34,3.27]
[1753999885548,3.16,173.42,173.35,111.18]
[1753999886343,4.25972912,173.41,173.35,111.18]
[1753999886655,3.16,173.4,173.35,114.45]
[1753999886851,5.7686,173.38,173.35,114.45]
[1753999887045,3.16,173.37,173.35,3.27]
[1753999887250,3.16,173.36,173.35,3.27]
[1753999887450,3.16,173.36,173.34,111.18]
[1753999887650,3.16,173.42,173.35,3.27]
[1753999887847,4.26018788,173.41,173.35,3.27]
[1753999888048,3.16,173.37,173.35,3.27]
[1753999888857,8.9287,173.37,173.35,3.27]
[1753999889155,3.16,173.37,173.35,3.27]
[1753999889357,3.2,173.42,173.36,3.06]
[1753999889556,8.9679,173.4,173.37,3.06]
[1753999889752,8.9679,173.4,173.38,3.06]
[1753999890150,3.2,173.39,173.38,3.06]
[1753999890350,5.768,173.39,173.36,3.06]
[1753999890548,3.2,173.38,173.36,3.06]
[1753999891052,10.1156848,173.45,173.37,3.06]
[1753999891258,3.2,173.43,173.37,3.06]
[1753999891457,3.2,173.41,173.35,3.06]
[1753999891758,3.2,173.38,173.36,3.06]
[1753999891954,8.968,173.4,173.35,3.06]
[1753999892154,3.2,173.38,173.36,3.06]
[1753999892454,3.2,173.43,173.34,119.59031835]
[1753999892654,3.2,173.41,173.34,114.22]
[1753999892851,4.27511234,173.4,173.34,114.22]
[1753999893047,3.2,173.36,173.34,114.22]
[1753999893450,4.74536645,173.42,173.34,111.16]
[1753999893652,3.2,173.37,173.35,3.06]
[1753999893853,5.37031835,173.41,173.32,3.06]
[1753999894048,3.2,173.39,173.32,114.2]
[1753999894252,3.2,173.37,173.32,114.2]
[1753999895055,5.7694,173.35,173.32,114.2]
[1753999895255,3.2,173.34,173.32,114.2]
[1753999895861,3.2,173.4,173.33,3.06]
[1753999896067,5.7692,173.36,173.33,3.06]
[1753999896464,3.2,173.37,173.35,3.06]
[1753999896663,3.2,173.36,173.35,3.06]
[1753999896862,3.2,173.41,173.33,116.51031835]
[1753999897165,4.27712105,173.4,173.34,3.06]
[1753999897359,4.27712105,173.39,173.35,3.06]
[1753999897565,13.24552105,173.38,173.34,5.7695]
[1753999897761,3.2,173.37,173.35,3.06]
[1753999898360,3.2,173.36,173.29,3.06]
[1753999898561,3.2,173.35,173.31,3.06]
[1753999898766,8.9699,173.34,173.31,3.06]
[1753999898971,3.2,173.33,173.31,3.06]
[1753999899169,3.2,173.38,173.31,3.06]
[1753999899466,5.769,173.36,173.32,3.06]
[1753999899666,10.1156848,173.41,173.33,3.06]
[1753999899869,3.2,173.35,173.33,3.06]
[1753999900168,3.2,173.38,173.31,3.06]
[1753999900365,3.2,173.36,173.31,3.06]
[1753999900872,4.27410116,173.35,173.29,3.06]
[1753999901169,3.2,173.32,173.3,3.06]
[1753999902163,5.37031835,173.37,173.29,111.1]
[1753999902364,3.2,173.35,173.26,5.37031835]
[1753999902670,5.771,173.31,173.27,111.08]
[1753999902867,3.2,173.3,173.28,3.06]
[1753999903065,5.7715,173.29,173.25,3.06]
[1753999903260,3.2,173.34,173.26,111.1]
[1753999904066,8.9719,173.28,173.26,114.16]
[1753999904266,8.9719,173.28,173.27,3.06]
[1753999904462,5.7709,173.31,173.26,111.1]
[1753999904667,5.7709,173.31,173.27,3.06]
[1753999904972,3.2,173.35,173.27,3.06]
[1753999905364,5.7711,173.3,173.27,3.06]
[1753999905562,5.7711,173.3,173.26,122.24241835]
[1753999905859,5.7711,173.3,173.29,3.06]
[1753999906370,8.9711,173.3,173.29,3.06]
[1753999906869,3.2,173.34,173.29,3.06]
[1753999907067,3.2,173.34,173.31,5.37031835]
[1753999907268,3.2,173.34,173.32,3.06]
[1753999907763,3.2,173.36,173.33,3.06]
[1753999907965,3.2,173.36,173.34,3.06]
[1753999908468,3.2,173.43,173.34,3.06]
[1753999908672,3.2,173.41,173.34,3.06]
[1753999908867,5.769,173.37,173.33,5.77]
[1753999909071,3.2,173.4,173.32,3.06]
[1753999909666,3.2,173.37,173.31,111.08]
[1753999910073,8.57031835,173.37,173.31,111.08]
[1753999910373,3.2,173.32,173.26,111.06]
[1753999910570,3.2,173.32,173.26,114.12]
[1753999910764,3.2,173.3,173.28,3.06]
[1753999910964,3.2,173.29,173.26,111.06]
[1753999911171,3.2,173.29,173.27,3.06]
[1753999911369,5.7711,173.3,173.28,3.06]
[1753999911568,8.9711,173.3,173.28,3.06]
[1753999911768,3.2,173.3,173.28,3.06]
[1753999912173,8.9713,173.29,173.28,3.06]
[1753999912373,8.9713,173.29,173.27,3.06]
[1753999912569,3.2,173.29,173.27,3.06]
[1753999912872,8.9713,173.29,173.27,3.06]
[1753999914570,5.37031835,173.35,173.28,3.06]
[1753999914777,3.2,173.34,173.3,5.37031835]
[1753999915072,5.37031835,173.39,173.31,3.06]
[1753999915272,3.2,173.37,173.31,3.06]
[1753999915469,3.2,173.37,173.33,3.06]
[1753999915679,3.2,173.37,173.35,3.06]
[1753999916067,5.37031835,173.44,173.34,5.37031835]
[1753999916267,3.2,173.4,173.37,3.06]
[1753999916474,3.2,173.4,173.38,3.06]
[1753999916671,8.9673,173.42,173.38,11.13841835]
[1753999916871,3.2,173.47,173.4,3.06]
[1753999917174,5.37031835,173.45,173.35,116.39031835]
[1753999917374,3.2,173.39,173.36,3.06]
[1753999917672,5.37031835,173.45,173.36,3.06]
[1753999917869,3.2,173.43,173.36,3.06]
[1753999918985,3.12,173.44,173.37,3.28]
[1753999919185,3.12,173.44,173.39,3.28]
[1753999919374,3.12,173.43,173.41,3.28]
[1753999919576,3.12,173.46,173.4,5.37031835]
[1753999919783,3.12,173.46,173.42,3.28]
[1753999920281,3.12,173.44,173.42,3.28]
[1753999920581,5.7649,173.49,173.42,5.37031835]
[1753999920781,3.12,173.49,173.45,5.37031835]
[1753999920987,3.12,173.49,173.47,3.28]
[1753999921783,3.12,173.55,173.45,8.65031835]
[1753999921988,4.28751479,173.54,173.45,8.65031835]
[1753999922184,3.12,173.52,173.45,8.65031835]
[1753999922386,4.76111842,173.57,173.49,5.37031835]
[1753999922582,3.12,173.55,173.52,3.28]
[1753999922888,3.12,173.54,173.52,3.28]
[1753999923387,5.37031835,173.59,173.49,5.37031835]
[1753999923587,3.12,173.53,173.5,3.28]
[1753999923783,5.37031835,173.59,173.51,3.28]
[1753999924088,5.7636,173.53,173.52,3.28]
[1753999924481,5.37031835,173.59,173.47,110.96]
[1753999924677,3.12,173.55,173.53,3.28]
[1753999925289,5.7635,173.53,173.51,5.37031835]
[1753999925592,5.7635,173.53,173.52,3.28]
[1753999925783,3.12,173.54,173.52,3.28]
[1753999925985,5.37031835,173.61,173.51,5.37031835]
[1753999926190,3.12,173.55,173.52,3.28]
[1753999926490,3.12,173.54,173.52,3.28]
[1753999926985,5.7634,173.53,173.52,3.28]
[1753999927187,5.37031835,173.57,173.49,3.28]
[1753999927392,5.7634,173.53,173.48,14.41511835]
[1753999927690,5.7634,173.53,173.52,3.28]
[1753999928186,5.7638,173.52,173.51,3.28]
[1753999928484,5.37031835,173.57,173.48,3.28]
[1753999928785,5.7644,173.5,173.49,3.28]
[1753999929490,3.12,173.51,173.47,110.96]
[1753999929683,3.12,173.56,173.48,3.28]
[1753999930088,8.8841,173.51,173.49,3.28]
[1753999930692,5.7638,173.52,173.5,3.28]
[1753999930991,3.12,173.58,173.51,8.65031835]
[1753999931590,3.12,173.58,173.52,3.28]
[1753999931987,5.37031835,173.61,173.51,11.13411835]
[1753999931988,5.7626,173.56,173.51,11.13411835]
[1753999932194,3.12,173.55,173.53,3.28]
[1753999932393,3.12,173.58,173.53,5.37031835]
[1753999932593,5.7621,173.57,173.55,3.28]
[1753999932793,3.12,173.56,173.54,3.28]
[1753999932995,5.37031835,173.63,173.55,3.28]
[1753999933195,3.12,173.57,173.55,3.28]
[1753999933592,8.8821,173.57,173.55,3.28]
[1753999933795,3.12,173.57,173.55,3.28]
[1753999934395,3.12,173.56,173.55,3.28]
[1753999934800,3.12,173.56,173.53,5.37031835]
[1753999935295,3.12,173.56,173.55,3.28]
[1753999935486,3.12,173.56,173.53,5.37031835]
[1753999935690,3.12,173.56,173.54,3.28]
[1753999936996,8.8824,173.56,173.54,3.28]
[1753999937195,3.12,173.55,173.54,3.28]
[1753999937493,8.8821,173.57,173.53,11.13371835]
[1753999937692,3.12,173.57,173.55,3.28]
[1753999938000,3.12,173.56,173.53,5.37031835]
[1753999938193,3.12,173.56,173.54,3.28]
[1753999938500,3.12,173.55,173.54,3.28]
[1753999939196,3.12,173.56,173.54,3.28]
[1753999939497,3.12,173.62,173.56,3.28]
[1753999939702,3.12,173.62,173.58,3.28]
[1753999939892,3.12,173.68,173.59,8.65031835]